fUST/lending_fUST_20250609
["ID","MTS","AMOUNT","RATE_DAILY","PERIOD"]
[365082709,1749454234492,-158.7201836,0.00022082,2]
[365082710,1749454234502,-176.7945791,0.00022082,2]
[365082711,1749454234511,-319.8102269,0.00022082,2]
[365082712,1749454234522,-573.244939,0.00022082,2]
[365082713,1749454234531,-176.7945793,0.00022082,2]
[365082714,1749454234541,-573.244939,0.00022082,2]
[365082715,1749454234551,-158.7201836,0.00022082,2]
[365082716,1749454234561,-176.7945791,0.00022082,2]
[365082717,1749454234571,-573.244939,0.00022082,2]
[365082718,1749454234582,-331.9518746,0.00022082,2]
[365082719,1749454234591,-573.244939,0.00022082,2]
[365082720,1749454234601,-573.244939,0.00022082,2]
[365082721,1749454234614,-931.2038723,0.00022082,2]
[365082722,1749454234624,-709.08,0.00022104,4]
[365082723,1749454234633,-385.26,0.00022106,2]
[365082724,1749454234642,-160.0,0.00022106,2]
[365082725,1749454234655,-244.93654545,0.00022107,6]
[365082726,1749454234665,-5000.0,0.00022132,2]
[365082727,1749454234675,-440.0,0.00022191,4]
[365082728,1749454234686,-440.0,0.00022191,4]
[365082729,1749454234696,-440.0,0.00022191,4]
[365082730,1749454234706,-440.0,0.00022191,4]
[365082731,1749454234716,-440.0,0.00022191,2]
[365082732,1749454234726,-440.0,0.00022191,4]
[365082733,1749454234737,-440.0,0.00022191,4]
[365082734,1749454234746,-440.0,0.00022191,4]
[365082735,1749454234755,-440.0,0.00022191,4]
[365082736,1749454234765,-440.0,0.00022191,4]
[365082737,1749454234774,-440.0,0.00022191,4]
[365082738,1749454234784,-2984.71,0.00022191,4]
[365082739,1749454234793,-606.95,0.00022191,4]
[365082740,1749454234803,-440.0,0.00022191,4]
[365082741,1749454234812,-440.0,0.00022191,4]
[365082742,1749454234822,-440.0,0.00022191,4]
[365082743,1749454234831,-1177.91,0.00022191,4]
[365082744,1749454234841,-440.0,0.00022191,4]
[365082745,1749454234851,-173.706982,0.00022191,2]
[365082746,1749454234861,-151.0,0.00022191,7]
[365082747,1749454234871,-173.706982,0.00022191,2]
[365082748,1749454234881,-514.32,0.00022191,4]
[365082749,1749454234891,-585.84,0.00022191,4]
[365082750,1749454234909,-440.0,0.00022191,4]
[365082751,1749454234922,-440.0,0.00022191,4]
[365082752,1749454234932,-757.99,0.00022191,4]
[365082753,1749454234942,-440.0,0.00022191,4]
[365082754,1749454234953,-756.8,0.00022191,4]
[365082755,1749454234962,-827.68,0.00022191,4]
[365082756,1749454234973,-440.0,0.00022191,4]
[365082757,1749454234982,-863.73,0.00022191,4]
[365082758,1749454234993,-440.0,0.00022191,4]
[365082759,1749454235003,-440.0,0.00022191,4]
[365082760,1749454235013,-440.0,0.00022191,4]
[365082761,1749454235023,-440.0,0.00022191,4]
[365082762,1749454235033,-722.69,0.00022191,4]
[365082763,1749454235044,-860.89,0.00022191,4]
[365082764,1749454235186,-247.16,0.00022191,4]
[365082765,1749454235224,-446.65,0.00022191,4]
[365082766,1749454235234,-440.0,0.00022191,4]
[365082767,1749454235245,-440.0,0.00022191,4]
[365082768,1749454235254,-709.08,0.00022204,5]
[365082769,1749454235264,-244.93654545,0.0002221,6]
[365082770,1749454235273,-364.95672582,0.00022218,2]
[365082771,1749454235283,-500.0,0.00022255,2]
[365082772,1749454235293,-213.982278,0.00022304,7]
[365082773,1749454235303,-151.0,0.00022304,7]
[365082774,1749454235313,-709.08,0.00022304,6]
[365082775,1749454235323,-244.93654545,0.00022314,7]
[365082776,1749454235334,-151.0,0.00022404,7]
[365082777,1749454235343,-709.08,0.00022404,5]
[365082778,1749454235354,-151.0,0.00022408,7]
[365082779,1749454235364,-244.93654545,0.00022417,7]
[365082780,1749454235374,-440.0,0.00022465,4]
[365082781,1749454235384,-400.0,0.00022465,2]
[365082782,1749454235395,-400.0,0.00022465,2]
[365082783,1749454235405,-400.0,0.00022465,2]
[365082784,1749454235417,-440.0,0.00022465,4]
[365082785,1749454235428,-440.0,0.00022465,4]
[365082786,1749454235438,-440.0,0.00022465,4]
[365082787,1749454235448,-440.0,0.00022465,2]
[365082788,1749454235459,-440.0,0.00022465,4]
[365082789,1749454235473,-440.0,0.00022465,4]
[365082790,1749454235484,-440.0,0.00022465,4]
[365082791,1749454235495,-440.0,0.00022465,4]
[365082792,1749454235505,-440.0,0.00022465,4]
[365082793,1749454235515,-440.0,0.00022465,4]
[365082794,1749454235524,-2984.71,0.00022465,4]
[365082795,1749454235534,-606.95,0.00022465,4]
[365082796,1749454235544,-440.0,0.00022465,4]
[365082797,1749454235554,-440.0,0.00022465,4]
[365082798,1749454235565,-440.0,0.00022465,4]
[365082799,1749454235575,-1177.91,0.00022465,4]
[365082800,1749454235584,-440.0,0.00022465,4]
[365082801,1749454235594,-514.32,0.00022465,4]
[365082802,1749454235604,-585.84,0.00022465,4]
[365082803,1749454235618,-440.0,0.00022465,4]
[365082804,1749454235628,-440.0,0.00022465,4]
[365082805,1749454235638,-757.99,0.00022465,4]
[365082806,1749454235648,-440.0,0.00022465,4]
[365082807,1749454235659,-756.8,0.00022465,4]
[365082808,1749454235669,-827.68,0.00022465,4]
[365082809,1749454235679,-440.0,0.00022465,4]
[365082810,1749454235690,-863.73,0.00022465,4]
[365082811,1749454235701,-440.0,0.00022465,4]
[365082812,1749454235711,-440.0,0.00022465,4]
[365082813,1749454235721,-440.0,0.00022465,4]
[365082814,1749454235732,-440.0,0.00022465,4]
[365082815,1749454235743,-722.69,0.00022465,4]
[365082816,1749454235752,-860.89,0.00022465,4]
[365082817,1749454235763,-446.65,0.00022465,4]
[365082818,1749454235773,-440.0,0.00022465,4]
[365082819,1749454235783,-440.0,0.00022465,4]
[365082820,1749454235793,-500.0,0.0002249,2]
[365082821,1749454235803,-500.0,0.0002249,2]
[365082822,1749454235812,-500.0,0.0002249,2]
[365082823,1749454235822,-500.0,0.0002249,2]
[365082824,1749454235833,-709.08,0.00022504,7]
[365082825,1749454235842,-200.93105706,0.00022521,7]
[365082826,1749454235959,224.11,0.00016704,2]
[365082842,1749454239469,-448.22,0.00018223,2]
[365082843,1749454239479,-672.33,0.00019742,2]
[365082844,1749454239492,-896.44,0.0002126,2]
[365082845,1749454239502,-440.0,0.00021917,4]
[365082846,1749454239512,-440.0,0.00021917,4]
[365082847,1749454239522,-44.00548839,0.00022521,7]
[365082848,1749454239532,-420.0,0.00022521,2]
[365082849,1749454239542,-709.08,0.00022604,7]
[365082850,1749454239552,-244.93654545,0.00022624,7]
[365082851,1749454239562,-462.17093297,0.00022639,2]
[365082852,1749454239572,-5000.0,0.0002268,2]
[365082853,1749454239582,-709.08,0.00022704,2]
[365082854,1749454239592,-70.73703319,0.00022728,7]
[365082855,1749454239604,-174.19951226,0.00022728,7]
[365082856,1749454239618,-118.50798774,0.00022739,2]
[365082860,1749454239630,-281.49201226,0.00022739,2]
[365082863,1749454239640,-399.9700001,0.00022739,4]
[365082865,1749454239651,-440.0,0.00022739,4]
[365082867,1749454239661,-440.0,0.00022739,4]
[365082869,1749454239671,-440.0,0.00022739,4]
[365082871,1749454239682,-357.38019791,0.00022739,4]
[365082873,1749454239693,-151.0,0.00022739,7]
[365082875,1749454239704,-162.39807355,0.00022739,4]
[365082878,1749454239716,-277.60192645,0.00022739,4]
[365082880,1749454239727,-440.0,0.00022739,4]
[365082882,1749454239736,-2984.71,0.00022739,4]
[365082884,1749454239746,-606.95,0.00022739,4]
[365082886,1749454239755,-440.0,0.00022739,4]
[365082888,1749454239766,-440.0,0.00022739,4]
[365082890,1749454239777,-1177.91,0.00022739,4]
[365082892,1749454239786,-440.0,0.00022739,4]
[365082893,1749454239796,-173.706982,0.00022739,2]
[365082894,1749454239806,-151.0,0.00022739,7]
[365082895,1749454239815,-173.706982,0.00022739,2]
[365082896,1749454239827,-514.32,0.00022739,4]
[365082897,1749454239836,-585.84,0.00022739,4]
[365082898,1749454239847,-440.0,0.00022739,4]
[365082899,1749454239857,-757.99,0.00022739,4]
[365082900,1749454239867,-756.8,0.00022739,4]
[365082901,1749454239878,-827.68,0.00022739,4]
[365082902,1749454239888,-863.73,0.00022739,4]
[365082903,1749454239898,-440.07750445,0.00022739,4]
[365082904,1749454239907,-440.0,0.00022739,4]
[365082905,1749454239917,-358.28623939,0.00022739,4]
[365082906,1749454239927,-440.0,0.00022739,4]
[365082907,1749454239937,-722.69,0.00022739,4]
[365082908,1749454239947,-860.89,0.00022739,4]
[365082909,1749454239957,-151.0,0.00022739,7]
[365082910,1749454239967,-446.65,0.00022739,4]
[365082911,1749454239977,-440.0,0.00022739,4]
[365082912,1749454239987,-440.0,0.00022739,4]
[365082913,1749454239997,-312.0,0.00022772,2]
[365082914,1749454240007,-1120.55,0.00022779,2]
[365082915,1749454240018,-1000.0,0.00022803,2]
[365082916,1749454240028,-709.08,0.00022804,2]
[365082917,1749454240038,-244.93654545,0.00022831,8]
[365082918,1749454240048,-5888.0,0.00022841,2]
[365082919,1749454240059,-312.0,0.00022866,2]
[365082920,1749454240068,-312.0,0.00022896,2]
[365082921,1749454240078,-22500.54803868,0.00022904,2]
[365082922,1749454240117,-16298.14446436,0.00022904,2]
[365082923,1749454240127,-151.0,0.00022904,7]
[365082924,1749454240138,-154.46,0.00022904,10]
[365082925,1749454240147,-709.08,0.00022904,4]
[365082926,1749454240157,-153.0,0.00022904,2]
[365082927,1749454240167,-171.5745032,0.00022904,2]
[365082928,1749454240177,-151.0,0.00022913,7]
[365082929,1749454240187,-173.706982,0.00022913,2]
[365082930,1749454240196,-151.0,0.00022913,7]
[365082931,1749454240206,-173.706982,0.00022913,2]
[365082932,1749454240217,-1093.53266503,0.00022914,2]
[365082937,1749454241405,-800.0,0.00022914,2]
[365082938,1749454241417,-3994.46733497,0.00022914,2]
[365082939,1749454241426,-244.93654545,0.00022934,8]
[365082940,1749454241436,-127.35581107,0.00022938,2]
[365082941,1749454241447,-376.1391984,0.00022938,2]
[365082942,1749454241458,-1136.60257934,0.00022938,2]
[365082953,1749454243860,-440.0,0.00021917,4]
[365082954,1749454243871,-440.0,0.00022191,4]
[365082956,1749454243907,-4097.38104625,0.00022938,2]
[365082957,1749454243919,-150.52136494,0.00022938,2]
[365082958,1749454243930,-462.17093295,0.00022941,2]
[365082959,1749454243940,-215.0738,0.00022953,2]
[365082960,1749454243950,-186.0,0.00023,4]
[365082961,1749454243960,-186.0,0.00023,3]
[365082962,1749454243970,-8023.81229964,0.00023,4]
[365082963,1749454243981,-312.0,0.00023003,2]
[365082964,1749454243990,-709.08,0.00023004,3]
[365082965,1749454244000,-400.0,0.00023013,2]
[365082967,1749454244010,-349.3617278,0.00023013,4]
[365082968,1749454244020,-440.0,0.00023013,4]
[365082969,1749454244030,-440.0,0.00023013,4]
[365082970,1749454244040,-2984.71,0.00023013,4]
[365082971,1749454244050,-606.95,0.00023013,4]
[365082972,1749454244060,-440.0,0.00023013,4]
[365082973,1749454244069,-461.20257299,0.00023013,4]
[365082974,1749454244080,-1177.91,0.00023013,4]
[365082975,1749454244090,-429.2465938,0.00023013,4]
[365082976,1749454244100,-514.32,0.00023013,4]
[365082977,1749454244109,-585.84,0.00023013,4]
[365082978,1749454244119,-440.0,0.00023013,4]
[365082979,1749454244129,-757.99,0.00023013,4]
[365082980,1749454244139,-756.8,0.00023013,4]
[365082981,1749454244149,-827.68,0.00023013,4]
[365082982,1749454244159,-863.73,0.00023013,4]
[365082983,1749454244169,-560.25996135,0.00023013,4]
[365082984,1749454244179,-440.0,0.00023013,4]
[365082985,1749454244189,-722.69,0.00023013,4]
[365082986,1749454244198,-860.89,0.00023013,4]
[365082987,1749454244207,-174.881271,0.00023013,7]
[365082988,1749454244217,-446.65,0.00023013,4]
[365082989,1749454244227,-440.0,0.00023013,4]
[365082990,1749454244237,-440.0,0.00023013,4]
[365082991,1749454244247,-1450.6405,0.00023029,3]
[365082992,1749454244257,-173.706982,0.00023029,2]
[365082993,1749454244267,-151.0,0.00023029,7]
[365082994,1749454244277,-173.706982,0.00023029,2]
[365082995,1749454244287,-244.93654545,0.00023038,8]
[365082996,1749454244296,-312.0,0.00023048,2]
[365082997,1749454244306,-500.0,0.0002305,2]
[365082998,1749454244316,-151.0,0.00023083,7]
[365082999,1749454244326,-162.17309574,0.00023096,2]
[365083000,1749454244336,-312.0,0.00023103,2]
[365083001,1749454244346,-709.08,0.00023104,2]
[365083002,1749454244356,-160.0,0.00023108,3]
[365083003,1749454244366,-244.93654545,0.00023141,8]
[365083004,1749454244376,-638.0,0.000232,2]
[365083005,1749454244386,-709.08,0.00023204,7]
[365083006,1749454244396,-5888.0,0.00023218,2]
[365083007,1749454244406,-5000.0,0.00023228,2]
[365083008,1749454244415,-312.0,0.00023232,2]
[365083009,1749454244424,-312.0,0.00023236,2]
[365083010,1749454244434,-462.17093295,0.00023242,2]
[365083011,1749454244444,-244.93654545,0.00023245,8]
[365083012,1749454244453,-312.0,0.00023261,2]
[365083013,1749454244463,-400.0,0.00023287,2]
[365083014,1749454244472,-440.0,0.00023287,4]
[365083015,1749454244484,-440.0,0.00023287,4]
[365083016,1749454244494,-2984.71,0.00023287,4]
[365083017,1749454244504,-606.95,0.00023287,4]
[365083018,1749454244514,-440.0,0.00023287,4]
[365083019,1749454244524,-1177.91,0.00023287,4]
[365083020,1749454244534,-514.32,0.00023287,4]
[365083021,1749454244544,-585.84,0.00023287,4]
[365083022,1749454244554,-440.0,0.00023287,4]
[365083023,1749454244564,-757.99,0.00023287,4]
[365083024,1749454244574,-756.8,0.00023287,4]
[365083025,1749454244584,-827.68,0.00023287,4]
[365083026,1749454244594,-863.73,0.00023287,4]
[365083027,1749454244604,-440.0,0.00023287,4]
[365083028,1749454244617,-722.69,0.00023287,4]
[365083029,1749454244626,-860.89,0.00023287,4]
[365083030,1749454244636,-446.65,0.00023287,4]
[365083031,1749454244646,-440.0,0.00023287,4]
[365083032,1749454244656,-162.17309574,0.00023288,2]
[365083033,1749454244666,-709.08,0.00023304,3]
[365083034,1749454244675,-1080.61183212,0.00023313,7]
[365083035,1749454244688,-2194.66742473,0.00023313,7]
[365083054,1749454313882,215.3,0.00017118,2]
[365083055,1749454394148,234.69,0.00016702,2]
[365083056,1749454474532,15.04068491,0.00016685,2]
[365083057,1749454474556,216.66931509,0.00016685,2]
[365083058,1749454555145,228.76,0.0001671,2]
[365083059,1749454632781,163.76207,0.00013699,2]
[365083061,1749454641801,225.85,0.0001671,2]
[365083062,1749454721637,222.97,0.000167,2]
[365083063,1749454802591,220.13,0.00016702,2]
[365083065,1749454883672,217.33,0.00016794,2]
[365083067,1749454963070,214.57,0.00016804,2]
[365083068,1749455043777,211.84,0.00016732,2]
[365083069,1749455123660,209.14,0.00016698,2]
[365083070,1749455136133,-418.28,0.00018216,2]
[365083071,1749455136156,-5.83195954,0.00019127,2]
[365083075,1749455204917,201.15,0.00016708,2]
[365083076,1749455285475,198.59,0.00016727,2]
[365083079,1749455349079,-397.19,0.00018247,2]
[365083080,1749455349100,-150.0,0.000189,2]
[365083081,1749455349121,-1902.81,0.0001912,4]
[365083082,1749455350086,-10.57560544,0.0001912,4]
[365083083,1749455350106,-195.87269962,0.00019127,2]
[365083084,1749455350125,-148.32595101,0.00019735,2]
[365083085,1749455368012,191.01,0.00016725,2]
[365083102,1749455431898,-382.02,0.00018246,2]
[365083104,1749455431909,-573.04,0.00019766,2]
[365083106,1749455431918,-177.517354,0.00019867,2]
[365083108,1749455431927,-1467.422646,0.00020518,2]
[365083110,1749455431939,-195.1633097,0.00020518,2]
[365083112,1749455431949,-300.0,0.00020528,2]
[365083115,1749455431959,-300.0,0.00020528,2]
[365083117,1749455431968,-300.0,0.00020528,2]
[365083119,1749455431978,-245.0,0.00020528,2]
[365083121,1749455431987,-300.0,0.00020528,2]
[365083122,1749455431996,-959.69539393,0.00020528,2]
[365083125,1749455432008,-240.30460607,0.00020528,2]
[365083127,1749455432017,-388.13637237,0.00020529,2]
[365083129,1749455432027,-509.05902156,0.0002053,2]
[365083131,1749455432038,-4869.19082922,0.0002053,2]
[365083132,1749455432051,-7055.96194088,0.0002053,2]
[365083133,1749455432063,-481.84569023,0.0002053,2]
[365083134,1749455432195,-605.45,0.0002053,2]
[365083140,1749455438364,-388.13637237,0.00020529,2]
[365083141,1749455438378,-7008.52613016,0.00020529,2]
[365083142,1749455438388,-11378.49251811,0.0002053,2]
[365083143,1749455438400,-156.82007574,0.00020718,2]
[365083144,1749455438410,-160.0,0.00020818,2]
[365083145,1749455438420,-157.94596,0.00021066,2]
[365083146,1749455438429,-764.05,0.00021287,2]
[365083147,1749455438439,-163.76207,0.00021404,2]
[365083148,1749455438449,-5000.0,0.00021584,2]
[365083149,1749455438460,-1009.1765755,0.00021584,2]
[365083150,1749455438469,-1000.0,0.00021584,2]
[365083151,1749455438479,-1000.0,0.00021584,2]
[365083152,1749455438489,-701.78429771,0.00021584,2]
[365083153,1749455438499,-207.4,0.00021584,2]
[365083154,1749455438509,-2598.0,0.0002181,7]
[365083155,1749455438519,-500.0,0.00021899,2]
[365083156,1749455438528,-1046.84184505,0.000219,6]
[365083157,1749455438538,-203.87,0.00021907,3]
[365083158,1749455438548,-213.08899333,0.00021911,2]
[365083159,1749455438558,-842.5625,0.00021911,2]
[365083160,1749455438568,-229.64266968,0.00021911,2]
[365083161,1749455438578,-424.05420114,0.00021911,2]
[365083162,1749455438588,-834.7738823,0.00021911,2]
[365083163,1749455438598,-198.15805069,0.00021916,2]
[365083164,1749455438608,-500.0,0.00021916,2]
[365083165,1749455438618,-378.77943933,0.00021916,2]
[365083166,1749455438628,-500.0,0.00021916,2]
[365083167,1749455438638,-500.0,0.00021916,2]
[365083168,1749455438648,-500.0,0.00021916,2]
[365083169,1749455438659,-500.0,0.00021916,2]
[365083170,1749455438668,-177.79823368,0.00021917,2]
[365083171,1749455438678,-430.0,0.00021917,4]
[365083172,1749455438689,-430.0,0.00021917,4]
[365083173,1749455438698,-430.0,0.00021917,4]
[365083174,1749455438710,-405.76938968,0.00021917,4]
[365083175,1749455438720,-445.798385,0.00021917,4]
[365083176,1749455438731,-430.0,0.00021917,4]
[365083177,1749455438742,-397.19654804,0.00021917,4]
[365083178,1749455438752,-440.0,0.00021917,4]
[365083179,1749455438761,-211.17063852,0.00021917,4]
[365083180,1749455438771,-430.0,0.00021917,4]
[365083181,1749455438781,-359.20152338,0.00021917,4]
[365083182,1749455438791,-440.0,0.00021917,4]
[365083183,1749455438805,-480.0,0.00021917,4]
[365083184,1749455438814,-440.0,0.00021917,4]
[365083185,1749455438824,-440.0,0.00021917,4]
[365083186,1749455438835,-433.49669155,0.00021917,4]
[365083187,1749455438844,-440.0,0.00021917,4]
[365083188,1749455438854,-440.0,0.00021917,4]
[365083189,1749455438864,-440.0,0.00021917,4]
[365083190,1749455438873,-430.0,0.00021917,4]
[365083191,1749455438882,-560.29190621,0.00021917,4]
[365083192,1749455438892,-430.0,0.00021917,4]
[365083193,1749455438902,-430.0,0.00021917,4]
[365083194,1749455438911,-500.0,0.00021917,4]
[365083195,1749455438921,-440.0,0.00021917,4]
[365083196,1749455438931,-430.0,0.00021917,4]
[365083197,1749455438941,-165.961,0.00021917,2]
[365083198,1749455438951,-440.0,0.00021917,4]
[365083199,1749455438961,-440.0,0.00021917,4]
[365083200,1749455438970,-440.0,0.00021917,4]
[365083201,1749455438980,-420.0,0.00021917,4]
[365083202,1749455438990,-573.70470509,0.00021917,4]
[365083203,1749455439000,-440.0,0.00021917,4]
[365083204,1749455439010,-430.0,0.00021917,4]
[365083205,1749455439020,-440.0,0.00021917,4]
[365083206,1749455439030,-206.78080013,0.00021917,4]
[365083207,1749455439039,-440.0,0.00021917,4]
[365083208,1749455439049,-500.0,0.00021917,4]
[365083209,1749455439059,-500.0,0.00021917,4]
[365083210,1749455439069,-500.0,0.00021917,4]
[365083211,1749455439080,-446.07446011,0.00021917,4]
[365083212,1749455439090,-440.0,0.00021917,4]
[365083213,1749455439099,-440.0,0.00021917,4]
[365083214,1749455439109,-440.0,0.00021917,4]
[365083215,1749455439118,-440.0,0.00021917,4]
[365083216,1749455439128,-431.88617287,0.00021917,4]
[365083217,1749455439138,-440.0,0.00021917,4]
[365083218,1749455439147,-440.0,0.00021917,4]
[365083219,1749455439158,-490.0,0.00021917,4]
[365083220,1749455439167,-463.5078297,0.00021917,4]
[365083221,1749455439177,-432.20823666,0.00021917,4]
[365083222,1749455439187,-440.0,0.00021917,4]
[365083223,1749455439196,-430.0,0.00021917,4]
[365083224,1749455439206,-430.0,0.00021917,4]
[365083225,1749455439215,-430.0,0.00021917,4]
[365083226,1749455439225,-440.0,0.00021917,4]
[365083227,1749455439235,-430.0,0.00021917,4]
[365083228,1749455439245,-520.78,0.00021917,4]
[365083229,1749455439256,-430.0,0.00021917,4]
[365083230,1749455439266,-440.0,0.00021917,4]
[365083231,1749455439276,-430.0,0.00021917,4]
[365083232,1749455439286,-430.0,0.00021917,4]
[365083233,1749455439299,-430.0,0.00021917,4]
[365083235,1749455439309,-430.99842962,0.00021917,4]
[365083236,1749455439318,-430.0,0.00021917,4]
[365083237,1749455439328,-500.0,0.00021917,4]
[365083238,1749455439339,-500.0,0.00021917,4]
[365083239,1749455439348,-500.0,0.00021917,4]
[365083240,1749455439358,-514.57626875,0.00021917,4]
[365083241,1749455439370,-440.0,0.00021917,4]
[365083242,1749455439380,-440.0,0.00021917,4]
[365083243,1749455439390,-440.0,0.00021917,4]
[365083244,1749455439401,-420.0,0.00021917,4]
[365083245,1749455439411,-440.0,0.00021917,4]
[365083246,1749455439421,-430.0,0.00021917,4]
[365083247,1749455439431,-440.0,0.00021917,4]
[365083248,1749455439441,-440.0,0.00021917,4]
[365083249,1749455439450,-440.0,0.00021917,4]
[365083250,1749455439460,-440.0,0.00021917,4]
[365083251,1749455439470,-440.0,0.00021917,4]
[365083252,1749455439480,-440.0,0.00021917,4]
[365083254,1749455439490,-430.0,0.00021917,4]
[365083255,1749455439500,-431.14723242,0.00021917,4]
[365083256,1749455439510,-430.0,0.00021917,4]
[365083257,1749455439520,-440.0,0.00021917,4]
[365083258,1749455439529,-440.0,0.00021917,4]
[365083259,1749455439539,-440.0,0.00021917,4]
[365083260,1749455439549,-430.0,0.00021917,4]
[365083261,1749455439560,-440.0,0.00021917,4]
[365083262,1749455439569,-430.0,0.00021917,4]
[365083263,1749455439579,-440.0,0.00021917,4]
[365083264,1749455439590,-440.0,0.00021917,4]
[365083265,1749455439600,-420.0,0.00021917,4]
[365083266,1749455439610,-430.0,0.00021917,4]
[365083267,1749455439620,-440.0,0.00021917,4]
[365083268,1749455439630,-255.40745137,0.00021917,4]
[365083269,1749455439640,-430.0,0.00021917,4]
[365083270,1749455439650,-440.0,0.00021917,4]
[365083271,1749455439660,-430.0,0.00021917,4]
[365083272,1749455439669,-440.0,0.00021917,4]
[365083273,1749455439679,-430.0,0.00021917,4]
[365083274,1749455439689,-430.0,0.00021917,4]
[365083275,1749455439699,-440.0,0.00021917,4]
[365083276,1749455439712,-430.0,0.00021917,4]
[365083277,1749455439722,-420.0,0.00021917,4]
[365083278,1749455439731,-440.0,0.00021917,4]
[365083279,1749455439741,-430.0,0.00021917,4]
[365083280,1749455439751,-440.0,0.00021917,4]
[365083281,1749455439760,-440.0,0.00021917,4]
[365083282,1749455439770,-430.0,0.00021917,4]
[365083283,1749455439780,-440.0,0.00021917,4]
[365083284,1749455439789,-430.0,0.00021917,4]
[365083285,1749455439799,-440.0,0.00021917,4]
[365083286,1749455439809,-420.0,0.00021917,4]
[365083287,1749455439818,-440.0,0.00021917,4]
[365083288,1749455439828,-440.0,0.00021917,4]
[365083289,1749455439839,-430.0,0.00021917,4]
[365083290,1749455439849,-420.0,0.00021917,4]
[365083291,1749455439859,-440.0,0.00021917,4]
[365083292,1749455439868,-480.85504194,0.00021917,4]
[365083293,1749455439878,-440.0,0.00021917,4]
[365083295,1749455439888,-430.0,0.00021917,4]
[365083296,1749455439898,-367.69743656,0.00021917,4]
[365083297,1749455439908,-471.0,0.00021917,4]
[365083298,1749455439917,-430.0,0.00021917,4]
[365083300,1749455439927,-420.0,0.00021917,4]
[365083302,1749455439937,-453.80888928,0.00021917,4]
[365083303,1749455439947,-385.74013933,0.00021917,4]
[365083304,1749455439957,-440.0,0.00021917,4]
[365083305,1749455439966,-440.0,0.00021917,4]
[365083306,1749455439976,-430.0,0.00021917,4]
[365083307,1749455439985,-440.0,0.00021917,4]
[365083308,1749455439995,-440.0,0.00021917,4]
[365083309,1749455440005,-440.0,0.00021917,4]
[365083310,1749455440014,-511.27,0.00021917,4]
[365083311,1749455440023,-2450.6,0.00021917,4]
[365083312,1749455440033,-440.0,0.00021917,4]
[365083313,1749455440042,-494.70773844,0.00021917,4]
[365083315,1749455440052,-430.0,0.00021917,4]
[365083316,1749455440061,-440.0,0.00021917,4]
[365083317,1749455440071,-440.0,0.00021917,4]
[365083318,1749455440080,-440.0,0.00021917,4]
[365083319,1749455440090,-440.0,0.00021917,4]
[365083320,1749455440099,-264.17758372,0.00021917,4]
[365083321,1749455440109,-430.0,0.00021917,4]
[365083322,1749455440119,-432.17771895,0.00021917,4]
[365083324,1749455440312,-384.27329561,0.00021917,4]
[365083325,1749455440323,-455.21376232,0.00021917,4]
[365083326,1749455440334,-500.0,0.00021917,4]
[365083327,1749455440344,-500.0,0.00021917,4]
[365083328,1749455440353,-500.0,0.00021917,4]